fUSD/lending_fUSD_20240215
["ID","MTS","AMOUNT","RATE_DAILY","PERIOD"]
[314088873,1707969040151,-504.13706748,0.00038356,7]
[314088875,1707969040160,-500.0,0.00038356,7]
[314088876,1707969040169,-500.0,0.00038356,7]
[314088880,1707969040178,-500.0,0.00038356,7]
[314088882,1707969040187,-500.0,0.00038356,7]
[314088884,1707969040197,-264.60181941,0.00038356,7]
[314088886,1707969040205,-523.21399491,0.00038356,7]
[314088888,1707969040214,-506.22866784,0.00038356,7]
[314088889,1707969040224,-182.77260881,0.00038356,7]
[314088892,1707969040233,-516.30976998,0.00038356,7]
[314088894,1707969040243,-500.0,0.00038356,7]
[314088896,1707969040252,-405.4670116,0.00038356,7]
[314088898,1707969040262,-611.87140212,0.00038356,7]
[314088899,1707969040271,-287.6330115,0.00038356,7]
[314088901,1707969040281,-387.25105382,0.00038356,7]
[314088903,1707969040290,-500.0,0.00038356,7]
[314088906,1707969040300,-500.0,0.00038356,7]
[314088907,1707969040309,-456.66833902,0.00038356,7]
[314088910,1707969040318,-500.0,0.00038356,7]
[314088912,1707969040327,-531.14340476,0.00038356,7]
[314088914,1707969040337,-540.60016666,0.00038356,7]
[314088916,1707969040346,-500.0,0.00038356,7]
[314088918,1707969040355,-281.69248044,0.00038356,7]
[314088920,1707969040364,-308.49309751,0.00038356,7]
[314088922,1707969040374,-500.0,0.00038356,7]
[314088924,1707969040383,-516.95677144,0.00038356,7]
[314088926,1707969040392,-533.74632576,0.00038356,7]
[314088928,1707969040401,-500.0,0.00038356,7]
[314088930,1707969040410,-500.0,0.00038356,7]
[314088932,1707969040419,-580.12786824,0.00038356,7]
[314088934,1707969040428,-509.42820223,0.00038356,7]
[314088936,1707969040438,-171.92019828,0.00038356,7]
[314088938,1707969040448,-294.07564754,0.00038356,7]
[314088940,1707969040457,-500.35216632,0.00038356,7]
[314088942,1707969040466,-500.0,0.00038356,7]
[314088944,1707969040475,-500.0,0.00038356,7]
[314088946,1707969040484,-500.0,0.00038356,7]
[314088948,1707969040493,-500.0,0.00038356,7]
[314088950,1707969040502,-221.3916247,0.00038356,7]
[314088952,1707969040511,-500.0,0.00038356,7]
[314088954,1707969040521,-483.3773781,0.00038356,7]
[314088956,1707969040530,-500.0,0.00038356,7]
[314088958,1707969040539,-518.50294046,0.00038356,7]
[314088960,1707969040548,-500.0,0.00038356,7]
[314088962,1707969040558,-517.85945743,0.00038356,7]
[314088964,1707969040567,-522.0319016,0.00038356,7]
[314088966,1707969040575,-500.0,0.00038356,7]
[314088968,1707969040585,-500.0,0.00038356,7]
[314088970,1707969040594,-551.32367492,0.00038356,7]
[314088972,1707969040603,-528.22892851,0.00038356,7]
[314088974,1707969040612,-493.414489,0.00038356,7]
[314088976,1707969040621,-500.0,0.00038356,7]
[314088978,1707969040630,-500.0,0.00038356,7]
[314088980,1707969040641,-521.00867001,0.00038356,7]
[314088982,1707969040650,-500.0,0.00038356,7]
[314088984,1707969040659,-500.0,0.00038356,7]
[314088986,1707969040669,-500.0,0.00038356,7]
[314088988,1707969040678,-529.67678662,0.00038356,7]
[314088990,1707969040687,-524.47292361,0.00038356,7]
[314088992,1707969040696,-500.0,0.00038356,7]
[314088994,1707969040705,-521.2514097,0.00038356,7]
[314088996,1707969040715,-500.0,0.00038356,7]
[314089011,1707969040836,-500.0,0.00038356,7]
[314089013,1707969040846,-500.0,0.00038356,7]
[314089015,1707969040855,-500.0,0.00038356,7]
[314089017,1707969040864,-500.0,0.00038356,7]
[314089019,1707969040873,-500.0,0.00038356,7]
[314089021,1707969040883,-500.0,0.00038356,7]
[314089023,1707969040892,-500.0,0.00038356,7]
[314089025,1707969040902,-361.90301622,0.00038356,7]
[314089027,1707969040911,-500.0,0.00038356,7]
[314089029,1707969040920,-500.0,0.00038356,7]
[314089031,1707969040929,-616.87157812,0.00038356,7]
[314089033,1707969040939,-500.0,0.00038356,7]
[314089035,1707969040948,-879.69,0.00038356,7]
[314089037,1707969040957,-500.0,0.00038356,7]
[314089038,1707969040966,-500.0,0.00038356,7]
[314089039,1707969040975,-500.0,0.00038356,7]
[314089040,1707969040984,-500.0,0.00038356,7]
[314089041,1707969040994,-185.59910962,0.00038356,7]
[314089042,1707969041003,-500.0,0.00038356,7]
[314089043,1707969041012,-500.0,0.00038356,7]
[314089044,1707969041021,-873.86,0.00038356,7]
[314089046,1707969041032,-500.0,0.00038356,7]
[314089048,1707969041043,-500.0,0.00038356,7]
[314089050,1707969041053,-667.05,0.00038356,7]
[314089052,1707969041062,-500.0,0.00038356,7]
[314089054,1707969041071,-500.0,0.00038356,7]
[314089056,1707969041081,-500.0,0.00038356,7]
[314089057,1707969041090,-500.0,0.00038356,7]
[314089059,1707969041099,-425.77207859,0.00038356,7]
[314089061,1707969041108,-500.0,0.00038356,7]
[314089063,1707969041119,-204.66025388,0.00038356,7]
[314089065,1707969041128,-500.0,0.00038356,7]
[314089068,1707969041137,-500.0,0.00038356,7]
[314089070,1707969041146,-500.0,0.00038356,7]
[314089072,1707969041156,-500.0,0.00038356,7]
[314089074,1707969041165,-626.06749222,0.00038356,7]
[314089076,1707969041174,-561.79,0.00038356,7]
[314089078,1707969041183,-500.0,0.00038356,7]
[314089080,1707969041193,-500.0,0.00038356,7]
[314089082,1707969041202,-522.72461102,0.00038356,7]
[314089083,1707969041211,-191.53776327,0.00038356,7]
[314089085,1707969041220,-376.52051558,0.00038356,7]
[314089087,1707969041230,-155.47620343,0.00038356,7]
[314089090,1707969041239,-500.0,0.00038356,7]
[314089092,1707969041249,-500.0,0.00038356,7]
[314089094,1707969041259,-472.21914704,0.00038356,7]
[314089096,1707969041269,-500.0,0.00038356,7]
[314089098,1707969041280,-500.0,0.00038356,7]
[314089099,1707969041290,-500.0,0.00038356,7]
[314089101,1707969041299,-500.0,0.00038356,7]
[314089104,1707969041309,-500.0,0.00038356,7]
[314089106,1707969041319,-329.73401736,0.00038356,7]
[314089108,1707969041329,-500.0,0.00038356,7]
[314089110,1707969041338,-500.0,0.00038356,7]
[314089112,1707969041347,-260.94704814,0.00038356,7]
[314089114,1707969041356,-500.0,0.00038356,7]
[314089116,1707969041366,-500.0,0.00038356,7]
[314089118,1707969041375,-589.25409497,0.00038356,7]
[314089120,1707969041384,-500.0,0.00038356,7]
[314089122,1707969041393,-647.81841274,0.00038356,7]
[314089124,1707969041402,-500.0,0.00038356,7]
[314089125,1707969041411,-506.36305327,0.00038356,7]
[314089127,1707969041420,-354.11028183,0.00038356,7]
[314089129,1707969041429,-500.0,0.00038356,7]
[314089131,1707969041438,-162.92563127,0.00038356,7]
[314089133,1707969041449,-500.0,0.00038356,7]
[314089135,1707969041459,-500.0,0.00038356,7]
[314089138,1707969041469,-500.0,0.00038356,7]
[314089140,1707969041481,-500.0,0.00038356,7]
[314089142,1707969041490,-399.99409367,0.00038356,7]
[314089144,1707969041499,-500.0,0.00038356,7]
[314089146,1707969041508,-500.0,0.00038356,7]
[314089148,1707969041517,-500.0,0.00038356,7]
[314089150,1707969041526,-500.0,0.00038356,7]
[314089152,1707969041535,-500.0,0.00038356,7]
[314089154,1707969041544,-500.0,0.00038356,7]
[314089156,1707969041553,-293.7801427,0.00038356,7]
[314089158,1707969041562,-500.0,0.00038356,7]
[314089160,1707969041571,-259.81529822,0.00038356,7]
[314089162,1707969041580,-559.37936622,0.00038356,7]
[314089164,1707969041589,-500.0,0.00038356,7]
[314089166,1707969041598,-500.0,0.00038356,7]
[314089168,1707969041607,-500.0,0.00038356,7]
[314089170,1707969041615,-500.0,0.00038356,7]
[314089172,1707969041625,-500.0,0.00038356,7]
[314089174,1707969041634,-626.70208139,0.00038356,7]
[314089176,1707969041643,-463.88577814,0.00038356,7]
[314089178,1707969041652,-500.0,0.00038356,7]
[314089180,1707969041661,-568.51009374,0.00038356,7]
[314089182,1707969041670,-500.0,0.00038356,7]
[314089184,1707969041679,-581.06,0.00038356,7]
[314089186,1707969041689,-500.0,0.00038356,7]
[314089187,1707969041698,-511.1217738,0.00038356,7]
[314089189,1707969041707,-500.0,0.00038356,7]
[314089191,1707969041716,-500.0,0.00038356,7]
[314089193,1707969041726,-500.0,0.00038356,7]
[314089196,1707969041735,-500.0,0.00038356,7]
[314089198,1707969041744,-495.71591021,0.00038356,7]
[314089201,1707969041767,-4.28408979,0.00038356,7]
[314089203,1707969041776,-500.0,0.00038356,7]
[314089205,1707969041785,-500.0,0.00038356,7]
[314089207,1707969041794,-500.0,0.00038356,7]
[314089209,1707969041803,-500.0,0.00038356,7]
[314089211,1707969041813,-500.0,0.00038356,7]
[314089213,1707969041822,-500.0,0.00038356,7]
[314089215,1707969041831,-602.75518619,0.00038356,7]
[314089217,1707969041841,-500.0,0.00038356,7]
[314089219,1707969041850,-500.0,0.00038356,7]
[314089221,1707969041859,-500.0,0.00038356,7]
[314089223,1707969041868,-500.0,0.00038356,7]
[314089225,1707969041878,-500.0,0.00038356,7]
[314089227,1707969041888,-500.0,0.00038356,7]
[314089229,1707969041897,-1180.3,0.00038356,7]
[314089230,1707969041907,-500.0,0.00038356,7]
[314089231,1707969041915,-500.0,0.00038356,7]
[314089232,1707969041925,-500.0,0.00038356,7]
[314089233,1707969041934,-500.0,0.00038356,7]
[314089234,1707969041943,-500.0,0.00038356,7]
[314089235,1707969041953,-500.0,0.00038356,7]
[314089236,1707969041962,-588.74079966,0.00038356,7]
[314089237,1707969041971,-500.0,0.00038356,7]
[314089238,1707969041981,-500.0,0.00038356,7]
[314089239,1707969041990,-500.0,0.00038356,7]
[314089240,1707969041999,-500.0,0.00038356,7]
[314089241,1707969042008,-500.0,0.00038356,7]
[314089242,1707969042017,-500.0,0.00038356,7]
[314089243,1707969042027,-594.95784155,0.00038356,7]
[314089244,1707969042036,-500.0,0.00038356,7]
[314089245,1707969042047,-500.0,0.00038356,7]
[314089246,1707969042056,-500.0,0.00038356,2]
[314089247,1707969042066,-500.0,0.00038356,7]
[314089248,1707969042075,-555.87420529,0.00038356,7]
[314089249,1707969042085,-500.0,0.00038356,7]
[314089250,1707969042094,-500.0,0.00038356,7]
[314089251,1707969042103,-500.0,0.00038356,7]
[314089252,1707969042112,-500.0,0.00038356,7]
[314089253,1707969042126,-500.0,0.00038356,7]
[314089254,1707969042168,-550.65173256,0.00038356,7]
[314089255,1707969042178,-500.0,0.00038356,7]
[314089256,1707969042187,-607.30732026,0.00038356,7]
[314089257,1707969042197,-500.0,0.00038356,7]
[314089258,1707969042206,-666.39133084,0.00038356,7]
[314089259,1707969042217,-500.0,0.00038356,7]
[314089260,1707969042227,-500.0,0.00038356,7]
[314089261,1707969042237,-500.0,0.00038356,7]
[314089262,1707969042247,-500.0,0.00038356,7]
[314089263,1707969042256,-500.0,0.00038356,7]
[314089264,1707969042265,-500.0,0.00038356,7]
[314089265,1707969042275,-515.27477593,0.00038356,7]
[314089266,1707969042284,-507.8450788,0.00038356,7]
[314089267,1707969042294,-500.0,0.00038356,7]
[314089268,1707969042303,-500.0,0.00038356,7]
[314089270,1707969042312,-244.4829717,0.00038356,7]
[314089271,1707969042321,-500.0,0.00038356,7]
[314089272,1707969042330,-500.0,0.00038356,7]
[314089273,1707969042339,-500.0,0.00038356,7]
[314089275,1707969042348,-500.0,0.00038356,7]
[314089276,1707969042358,-500.0,0.00038356,7]
[314089277,1707969042367,-500.0,0.00038356,7]
[314089280,1707969042377,-500.0,0.00038356,7]
[314089281,1707969042386,-512.0986752,0.00038356,7]
[314089284,1707969042396,-500.0,0.00038356,7]
[314089285,1707969042406,-500.0,0.00038356,7]
[314089287,1707969042416,-627.6794541,0.00038356,7]
[314089288,1707969042425,-500.0,0.00038356,7]
[314089289,1707969042436,-500.0,0.00038356,7]
[314089290,1707969042447,-500.0,0.00038356,7]
[314089291,1707969042457,-500.0,0.00038356,7]
[314089292,1707969042466,-500.0,0.00038356,7]
[314089293,1707969042475,-509.92911311,0.00038356,7]
[314089294,1707969042485,-517.02994212,0.00038356,7]
[314089295,1707969042493,-500.0,0.00038356,7]
[314089296,1707969042502,-500.0,0.00038356,7]
[314089297,1707969042513,-505.1305701,0.00038356,7]
[314089298,1707969042523,-500.0,0.00038356,7]
[314089299,1707969042534,-500.0,0.00038356,7]
[314089300,1707969042543,-500.0,0.00038356,7]
[314089301,1707969042553,-549.84684217,0.00038356,7]
[314089302,1707969042563,-464.3237844,0.00038356,7]
[314089303,1707969042572,-500.0,0.00038356,7]
[314089304,1707969042581,-546.66548949,0.00038356,7]
[314089305,1707969042592,-515.08159922,0.00038356,7]
[314089306,1707969042602,-500.0,0.00038356,7]
[314089307,1707969042610,-474.17657206,0.00038356,7]
[314089308,1707969042620,-500.0,0.00038356,7]
[314089309,1707969042629,-500.0,0.00038356,7]
[314089310,1707969042638,-500.0,0.00038356,7]
[314089311,1707969042648,-500.0,0.00038356,7]
[314089312,1707969042659,-500.0,0.00038356,7]
[314089313,1707969042671,-2392.07725227,0.00038383,10]
[314089314,1707969042680,-800.0,0.00038394,2]
[314089315,1707969042690,-932.16,0.00038457,2]
[314089316,1707969042700,-1232.0,0.00038479,2]
[314089317,1707969042711,-1413.848,0.00038479,2]
[314089318,1707969042720,-2392.07725227,0.0003849,10]
[314089319,1707969042729,-4795.288,0.000385,28]
[314089320,1707969042739,-7176.23175681,0.0003852,10]
[314089321,1707969042748,-12642.2173,0.0003853,2]
[314089322,1707969042757,-2223.88956312,0.00038544,2]
[314089323,1707969042766,-618.85,0.0003857,2]
[314089324,1707969042775,-23920.7725227,0.0003862,10]
[314089325,1707969042785,-237.00824769,0.0003863,7]
[314089326,1707969042795,-522.31850375,0.0003863,7]
[314089327,1707969042804,-536.45306161,0.0003863,7]
[314089328,1707969042813,-520.94438638,0.0003863,7]
[314089329,1707969042822,-530.92753383,0.0003863,7]
[314089330,1707969042831,-526.04140866,0.0003863,7]
[314089331,1707969042840,-511.33637217,0.0003863,7]
[314089332,1707969042849,-534.58195182,0.0003863,7]
[314089333,1707969042858,-504.17772375,0.0003863,7]
[314089334,1707969042867,-560.96850886,0.0003863,7]
[314089335,1707969042877,-508.75386279,0.0003863,7]
[314089336,1707969042886,-528.03987453,0.0003863,7]
[314089337,1707969042895,-500.0,0.0003863,2]
[314089338,1707969042904,-500.0,0.0003863,7]
[314089339,1707969042914,-549.86567395,0.0003863,7]
[314089340,1707969042922,-500.0,0.0003863,7]
[314089341,1707969042931,-1000.0,0.0003863,7]
[314089342,1707969042940,-500.0,0.0003863,7]
[314089343,1707969042950,-525.35882438,0.0003863,7]
[314089344,1707969042959,-500.0,0.0003863,7]
[314089345,1707969042968,-511.82218749,0.0003863,7]
[314089346,1707969042978,-500.0,0.0003863,7]
[314089347,1707969042987,-500.0,0.0003863,7]
[314089348,1707969042996,-500.0,0.0003863,7]
[314089349,1707969043005,-500.0,0.0003863,7]
[314089350,1707969043014,-500.0,0.0003863,7]
[314089351,1707969043024,-500.0,0.0003863,7]
[314089352,1707969043035,-500.0,0.0003863,7]
[314089353,1707969043049,-500.0,0.0003863,7]
[314089354,1707969043058,-500.0,0.0003863,7]
[314089355,1707969043068,-500.0,0.0003863,7]
[314089356,1707969043077,-500.0,0.0003863,7]
[314089357,1707969043087,-500.0,0.0003863,7]
[314089358,1707969043096,-500.0,0.0003863,7]
[314089359,1707969043105,-500.0,0.0003863,7]
[314089360,1707969043115,-500.0,0.0003863,7]
[314089361,1707969043125,-500.0,0.0003863,7]
[314089362,1707969043135,-500.0,0.0003863,7]
[314089363,1707969043145,-500.0,0.0003863,7]
[314089364,1707969043155,-500.0,0.0003863,7]
[314089365,1707969043165,-500.0,0.0003863,7]
[314089366,1707969043175,-500.0,0.0003863,7]
[314089367,1707969043185,-879.69,0.0003863,7]
[314089368,1707969043195,-500.0,0.0003863,7]
[314089369,1707969043205,-500.0,0.0003863,7]
[314089370,1707969043217,-500.0,0.0003863,7]
[314089371,1707969043228,-873.86,0.0003863,7]
[314089372,1707969043239,-500.0,0.0003863,7]
[314089373,1707969043250,-667.05,0.0003863,7]
[314089374,1707969043260,-500.0,0.0003863,7]
[314089375,1707969043270,-408.91413217,0.0003863,7]
[314089376,1707969043281,-500.0,0.0003863,7]
[314089377,1707969043291,-278.36323232,0.0003863,7]
[314089378,1707969043302,-500.0,0.0003863,7]
[314089379,1707969043313,-500.0,0.0003863,7]
[314089380,1707969043325,-500.0,0.0003863,7]
[314089381,1707969043334,-500.0,0.0003863,7]
[314089382,1707969043343,-157.25561341,0.0003863,7]
[314089383,1707969043353,-182.04612785,0.0003863,7]
[314089384,1707969043362,-500.0,0.0003863,7]
[314089385,1707969043372,-316.04797428,0.0003863,7]
[314089386,1707969043382,-500.0,0.0003863,7]
[314089387,1707969043391,-500.0,0.0003863,7]
[314089388,1707969043401,-500.0,0.0003863,7]
[314089389,1707969043410,-500.0,0.0003863,7]
[314089390,1707969043419,-500.0,0.0003863,7]
[314089391,1707969043429,-500.0,0.0003863,7]
[314089392,1707969043438,-500.0,0.0003863,7]
[314089393,1707969043448,-500.0,0.0003863,7]
[314089394,1707969043457,-500.0,0.0003863,7]
[314089395,1707969043467,-500.0,0.0003863,7]
[314089396,1707969043477,-500.0,0.0003863,7]
[314089397,1707969043488,-500.0,0.0003863,7]
[314089398,1707969043498,-479.43800799,0.0003863,7]
[314089399,1707969043507,-581.06,0.0003863,7]
[314089400,1707969043519,-500.0,0.0003863,7]
[314089401,1707969043529,-500.0,0.0003863,7]
[314089402,1707969043540,-500.0,0.0003863,7]
[314089403,1707969043550,-162.00584819,0.0003863,7]
[314089404,1707969043560,-500.0,0.0003863,7]
[314089405,1707969043572,-334.2186548,0.0003863,7]
[314089406,1707969043583,-500.0,0.0003863,7]
[314089407,1707969043592,-195.95790686,0.0003863,7]
[314089408,1707969043601,-500.0,0.0003863,7]
[314089409,1707969043611,-500.0,0.0003863,7]
[314089410,1707969043621,-1180.3,0.0003863,7]
[314089411,1707969043632,-219.25636154,0.0003863,7]
[314089412,1707969043643,-500.0,0.0003863,7]
[314089413,1707969043653,-500.0,0.0003863,7]
[314089414,1707969043664,-500.0,0.0003863,7]
[314089415,1707969043673,-500.0,0.0003863,7]
[314089416,1707969043684,-500.0,0.0003863,7]
[314089417,1707969043694,-500.0,0.0003863,7]
[314089418,1707969043704,-430.0,0.0003863,7]
[314089419,1707969043714,-500.0,0.0003863,7]
[314089420,1707969043723,-500.0,0.0003863,2]
[314089421,1707969043733,-587.31176927,0.0003863,7]
[314089422,1707969043742,-500.0,0.0003863,7]
[314089423,1707969043751,-500.0,0.0003863,7]
[314089424,1707969043856,-500.0,0.0003863,7]
[314089425,1707969043878,-500.0,0.0003863,7]
[314089426,1707969043888,-500.0,0.0003863,7]
[314089427,1707969043897,-500.0,0.0003863,7]
[314089428,1707969043907,-500.0,0.0003863,7]
[314089429,1707969043916,-500.0,0.0003863,7]
[314089430,1707969043926,-500.0,0.0003863,7]
[314089431,1707969043935,-500.0,0.0003863,7]
[314089432,1707969043944,-500.0,0.0003863,7]
[314089433,1707969043954,-297.11311491,0.0003863,7]
[314089434,1707969043963,-500.0,0.0003863,7]
[314089435,1707969043972,-578.06239529,0.0003863,7]
[314089436,1707969043981,-500.0,0.0003863,7]
[314089437,1707969043990,-1942.47912682,0.00038633,2]
[314089438,1707969043998,-195.7826786,0.00038641,2]
[314089439,1707969044007,-159.0,0.000387,7]
[314089440,1707969044017,-150.0,0.00038761,2]
[314089441,1707969044027,-1148.29376087,0.00038803,2]
[314089442,1707969044036,-5773.8305,0.00038804,3]
[314089443,1707969044048,-703.1254495,0.00038811,9]
[314089444,1707969044058,-150.0,0.0003888,2]
[314089445,1707969044066,-618.64,0.00038902,7]
[314089446,1707969044076,-806.52739813,0.00038903,2]
[314089447,1707969044086,-2000.0,0.00038903,2]
[314089448,1707969044095,-200.0,0.00038903,2]
[314089449,1707969044105,-3000.0,0.00038903,2]
[314089450,1707969044115,-2000.0,0.00038903,2]
[314089451,1707969044125,-200.0,0.00038903,2]
[314089452,1707969044134,-500.0,0.00038904,2]
[314089453,1707969044143,-509.68790486,0.00038904,7]
[314089454,1707969044153,-500.0,0.00038904,7]
[314089455,1707969044162,-500.0,0.00038904,7]
[314089456,1707969044171,-500.0,0.00038904,7]
[314089457,1707969044181,-500.0,0.00038904,7]
[314089458,1707969044191,-257.39779028,0.00038904,7]
[314089459,1707969044200,-500.0,0.00038904,7]
[314089460,1707969044209,-500.0,0.00038904,7]
[314089461,1707969044218,-626.85971791,0.00038904,7]
[314089462,1707969044227,-500.0,0.00038904,7]
[314089463,1707969044237,-500.0,0.00038904,7]
[314089464,1707969044245,-257.54621076,0.00038904,7]
[314089465,1707969044255,-500.0,0.00038904,7]
[314089466,1707969044264,-500.0,0.00038904,7]
[314089467,1707969044273,-500.0,0.00038904,7]
[314089468,1707969044282,-382.37191466,0.00038904,7]
[314089469,1707969044291,-500.0,0.00038904,7]
[314089470,1707969044300,-500.0,0.00038904,7]
[314089471,1707969044309,-500.0,0.00038904,7]
[314089472,1707969044319,-879.69,0.00038904,7]
[314089473,1707969044328,-500.0,0.00038904,7]
[314089474,1707969044336,-500.0,0.00038904,7]
[314089475,1707969044346,-500.0,0.00038904,7]
[314089476,1707969044355,-873.86,0.00038904,7]
[314089477,1707969044364,-500.0,0.00038904,7]
[314089478,1707969044373,-667.05,0.00038904,7]
[314089479,1707969044383,-500.0,0.00038904,7]
[314089480,1707969044391,-500.0,0.00038904,7]
[314089481,1707969044400,-500.0,0.00038904,7]
[314089482,1707969044410,-500.0,0.00038904,7]
[314089483,1707969044420,-422.05362326,0.00038904,7]
[314089484,1707969044429,-500.0,0.00038904,7]
[314089485,1707969044438,-500.0,0.00038904,7]
[314089486,1707969044447,-500.0,0.00038904,7]
[314089487,1707969044456,-500.0,0.00038904,7]
[314089488,1707969044465,-500.0,0.00038904,7]
[314089489,1707969044474,-500.0,0.00038904,7]
[314089490,1707969044483,-500.0,0.00038904,7]
[314089491,1707969044492,-500.0,0.00038904,7]
[314089492,1707969044501,-292.99930511,0.00038904,7]
[314089493,1707969044511,-500.0,0.00038904,7]
[314089494,1707969044520,-500.0,0.00038904,7]
[314089495,1707969044529,-500.0,0.00038904,7]
[314089496,1707969044538,-500.0,0.00038904,7]
[314089497,1707969044547,-581.06,0.00038904,7]
[314089498,1707969044556,-500.0,0.00038904,7]
[314089499,1707969044565,-500.0,0.00038904,7]
[314089500,1707969044574,-500.0,0.00038904,7]
[314089501,1707969044583,-500.0,0.00038904,7]
[314089502,1707969044593,-500.0,0.00038904,7]
[314089503,1707969044602,-500.0,0.00038904,7]
[314089504,1707969044611,-618.69117494,0.00038904,7]
[314089505,1707969044620,-1180.3,0.00038904,7]
[314089506,1707969044629,-500.0,0.00038904,7]
[314089507,1707969044638,-500.0,0.00038904,7]
[314089508,1707969044648,-500.0,0.00038904,7]
[314089509,1707969044657,-500.0,0.00038904,7]
[314089510,1707969044666,-500.0,0.00038904,7]
[314089511,1707969044675,-500.0,0.00038904,7]
[314089512,1707969044684,-500.0,0.00038904,7]
[314089513,1707969044694,-408.48075538,0.00038904,2]
[314089514,1707969044703,-500.0,0.00038904,7]
[314089515,1707969044712,-500.0,0.00038904,7]
[314089516,1707969044721,-500.0,0.00038904,7]
[314089517,1707969044731,-492.85772474,0.00038904,7]
[314089518,1707969044741,-500.0,0.00038904,7]
[314089519,1707969044750,-500.0,0.00038904,7]
[314089520,1707969044759,-500.0,0.00038904,7]
[314089521,1707969044769,-500.0,0.00038904,7]
[314089522,1707969044779,-500.0,0.00038904,7]
[314089524,1707969044788,-500.0,0.00038904,7]
[314089526,1707969044797,-500.0,0.00038904,7]
[314089528,1707969044806,-500.0,0.00038904,7]
[314089530,1707969044815,-1790.64,0.00038904,5]
[314089532,1707969044826,-1123.25687761,0.00038997,2]
[314089534,1707969044835,-151.06313109,0.00039,2]
[314089536,1707969044844,-155.0,0.00039,2]
[314089538,1707969044854,-80000.0,0.00039,10]
[314089540,1707969044864,-2223.88956312,0.00039089,2]
[314089542,1707969044873,-1942.47912682,0.00039167,2]
[314089543,1707969044882,-97135.9476282,0.00039168,4]
[314089544,1707969044891,-1000.0,0.00039177,2]
[314089545,1707969044901,-473.45205268,0.00039178,2]
[314089546,1707969044910,-500.0,0.00039178,7]
[314089547,1707969044919,-500.0,0.00039178,7]
[314089548,1707969044928,-500.0,0.00039178,7]
[314089549,1707969044937,-500.0,0.00039178,7]
[314089550,1707969044946,-500.0,0.00039178,7]
[314089551,1707969044955,-500.0,0.00039178,7]
[314089552,1707969044964,-500.0,0.00039178,7]
[314089553,1707969044975,-500.0,0.00039178,7]
[314089554,1707969044985,-500.0,0.00039178,7]
[314089555,1707969044995,-500.0,0.00039178,7]
[314089556,1707969045004,-500.0,0.00039178,7]
[314089557,1707969045015,-500.0,0.00039178,7]
[314089558,1707969045028,-500.0,0.00039178,7]
[314089559,1707969045037,-500.0,0.00039178,7]
[314089560,1707969045051,-879.69,0.00039178,7]
[314089561,1707969045063,-500.0,0.00039178,7]
[314089562,1707969045072,-500.0,0.00039178,7]
[314089563,1707969045082,-500.0,0.00039178,7]
[314089564,1707969045091,-873.86,0.00039178,7]
[314089565,1707969045101,-500.0,0.00039178,7]
[314089566,1707969045109,-667.05,0.00039178,7]
[314089567,1707969045121,-409.23372496,0.00039178,7]
[314089568,1707969045130,-500.0,0.00039178,7]
[314089569,1707969045139,-500.0,0.00039178,7]
[314089570,1707969045148,-500.0,0.00039178,7]
[314089571,1707969045157,-500.0,0.00039178,7]